Cogmind - Beta 17 @@@ ROGUE MODE // 2026.08.07 @ 16:56:32 Player: Lazz Result: Escaped! Performance ------------- Evolutions (9) 4500 Regions Visited (21) 4200 Robots Destroyed (113) 565 Value Destroyed (4058) 4058 Prototype IDs (46) 920 Alien Tech Used (0) 0 Bonus (4097) 4097 TOTAL SCORE: 18340 Bonus ------- High Alert Combat Kills 15 Follower Combat Kills 80 Entered DSFs 500 Aligned with FarCom 300 Met Data Miner 300 Win 3000 Friendly Fire -98 Cogmind --------- Core Integrity 1468/1600 Matter 137/300 Energy 30/100 System Corruption 2% Temperature Hot (218) Movement Flying (16) Location To Epsilon Eridani Parts ------- > --- POWER (3) -------- (None) > --- PROPULSION (8) --- Improved Diametric Drive Improved Diametric Drive Improved Diametric Drive Cooled Impulse Thruster Impulse Thruster Array Experimental Q-thruster > --- UTILITY (10) ----- Advanced Heat Sink Structural Scanner Enhanced Optical Array Advanced Signal Interpreter Terrain Scanner Terrain Scan Processor Target Analyzer Improved Armor Integrity Analyzer System Shield > --- WEAPON (4) ------- Enhanced Nova Cannon Helical Railgun Force Lance > --- INVENTORY (5) ---- Improved Thunder Leg Centrium Leg Centrium Leg Impulse Thruster Enhanced Hardcell Cannon Peak State ------------ > --- POWER ------------ Micro Antimatter Reactor Micro Antimatter Reactor > --- PROPULSION ------- Improved Diametric Drive Improved Diametric Drive Improved Diametric Drive Improved Diametric Drive Cooled Impulse Thruster Impulse Thruster Array Experimental Q-thruster > --- UTILITY ---------- Advanced Heat Sink Structural Scanner Enhanced Optical Array Spectral Analyzer Advanced Signal Interpreter Terrain Scanner Terrain Scan Processor Target Analyzer Improved Armor Integrity Analyzer System Shield > --- WEAPON ----------- Enhanced Nova Cannon Helical Railgun Force Lance > --- INVENTORY -------- Improved Thunder Leg Centrium Leg Centrium Leg Enhanced Quantum Rifle Enhanced Hardcell Cannon [Rating: 157] Favorites ----------- Power Micro Antimatter Reactor Engine Ion Engine Power Core Light Nuclear Core Reactor Micro Antimatter Reactor Propulsion Armored Heavy Treads Treads Armored Heavy Treads Leg Aluminum Leg Wheel Centrium Wheel Hover Unit Cooled Airjet Flight Unit Improved Diametric Drive Utility Lightpack 2.0 Device Advanced Heat Sink Storage Lightpack 2.0 Processor Terrain Scan Processor Hackware System Shield Weapon KE Penetrator Energy Gun Medium Laser Energy Cannon Nova Cannon Ballistic Gun KE Penetrator Ballistic Cannon Enhanced Hardcell Cannon Launcher Heavy Rocket Launcher Special Weapon Mining Laser Impact Weapon Powered Hammer Slashing Weapon Great Axe Piercing Weapon Force Lance Build | -11 -10 -10 -9 -9 -9 -8 -8 -7 -7 -7 -7 -6 -6 -6 -6 -5 -4 -4 -3 -2 -1 ------- Run | Yrd Mat Min Mat Min Exi Min Mat Fac Low Low Dat Pro Fac Was Fac Fac Fac DSF Res Res Acc Slots Evolved 18 | . . . 2 . . . 2 2 . . . . 2 . . 2 2 . 2 2 2 Power 2 | . . . . . . . . . . . . . 1 . . . . . . 1 . Propulsion 6 | . . . 1 . . . 1 1 . . . . . . . 2 . . 1 . . Utility 8 | . . . 1 . . . 1 1 . . . . . . . . 2 . . 1 2 Weapon 2 | . . . . . . . . . . . . . 1 . . . . . 1 . . Parts Attached 157 | 6 1 4 6 1 . 1 10 5 13 3 . . 3 . 26 2 4 7 44 13 8 Power 21 | 1 . 1 . . . . 1 1 1 2 . . 1 . 5 . 1 . 6 1 . Engine 10 | 1 . 1 . . . . 1 . . 1 . . 1 . 4 . 1 . . . . Core 4 | . . . . . . . . 1 1 1 . . . . 1 . . . . . . Reactor 7 | . . . . . . . . . . . . . . . . . . . 6 1 . Propulsion 50 | 2 . 1 2 . . . 1 1 5 1 . . 1 . 9 2 2 3 16 3 1 Treads 8 | 2 . . . . . . . . 1 . . . . . . . . 3 2 . . Leg 11 | . . . . . . . . . 3 . . . . . 1 . . . 6 1 . Wheel 4 | . . 1 . . . . . . . . . . . . 1 . . . 2 . . Hover 13 | . . . . . . . . . 1 . . . 1 . 7 2 2 . . . . Flight 14 | . . . 2 . . . 1 1 . 1 . . . . . . . . 6 2 1 Utility 43 | 1 1 1 3 1 . . 1 . 1 . . . 1 . 8 . 1 1 13 5 5 Device 27 | . 1 1 2 1 . . . . 1 . . . . . 5 . . 1 9 3 3 Storage 2 | 1 . . . . . . 1 . . . . . . . . . . . . . . Processor 10 | . . . 1 . . . . . . . . . . . 2 . . . 4 1 2 Hackware 4 | . . . . . . . . . . . . . 1 . 1 . 1 . . 1 . Protection . | . . . . . . . . . . . . . . . . . . . . . . Artifact . | . . . . . . . . . . . . . . . . . . . . . . Weapon 43 | 2 . 1 1 . . 1 7 3 6 . . . . . 4 . . 3 9 4 2 Energy Gun 13 | 2 . . . . . . 1 . 2 . . . . . 1 . . . 5 2 . Energy Cannon 5 | . . . . . . . 1 . . . . . . . . . . 1 1 1 1 Ballistic Gun 12 | . . . . . . 1 . 1 4 . . . . . 2 . . 1 3 . . Ballistic Cannon 3 | . . 1 . . . . . . . . . . . . . . . 1 . . 1 Launcher 5 | . . . . . . . 5 . . . . . . . . . . . . . . Special Weapon 1 | . . . 1 . . . . . . . . . . . . . . . . . . Impact Weapon 2 | . . . . . . . . 1 . . . . . . 1 . . . . . . Slashing Weapon 1 | . . . . . . . . 1 . . . . . . . . . . . . . Piercing Weapon 1 | . . . . . . . . . . . . . . . . . . . . 1 . Special Melee Weapon . | . . . . . . . . . . . . . . . . . . . . . . Unidentified Prototypes 13 | . . . 1 . . . 2 . . . . . . . 3 . . . 4 2 1 Parts Lost 73 | . . 5 . . . . 2 1 11 4 . 1 6 . 10 9 . 3 18 1 2 Power 15 | . . 1 . . . . 1 . 1 . . . 2 . 3 2 . 1 2 . 2 Propulsion 27 | . . 2 . . . . 1 1 6 1 . 1 3 . 3 3 . . 6 . . Utility 16 | . . . . . . . . . 1 1 . . 1 . 4 2 . 1 6 . . Weapon 15 | . . 2 . . . . . . 3 2 . . . . . 2 . 1 4 1 . Highest Loss Streak 13 | . . 4 . . . . 1 1 10 3 . 1 5 . 4 9 . 3 13 1 2 To Critical Strikes 2 | . . . . . . . 1 . . . . . . . . . . . 1 . . Average Backups 13 | . 3 5 5 3 3 3 12 20 22 24 26 26 27 30 15 4 3 2 4 3 5 Power 1 | . . . . . . . . . 1 1 2 2 6 7 2 . . . . . . Propulsion . | . 1 . . . . . . . . . . . . . . 1 . . . . 1 Utility 4 | . 1 3 4 2 2 2 4 3 6 7 9 9 8 8 3 1 1 . 2 . . Weapon 7 | . 1 1 . 1 1 1 8 16 15 15 15 14 13 15 8 2 2 . . 2 2 Tool/Special . | . . . . . . . . . . . . . . . . . . . . . . Unused Backups 42 | . . . . . 2 1 2 3 2 2 . . 4 . 17 . . . 6 . 3 Power 1 | . . . . . . . . . . . . . . . 1 . . . . . . Propulsion 3 | . . . . . . . . . . . . . . . . . . . . . 3 Utility 20 | . . . . . 2 . 1 1 1 1 . . 3 . 7 . . . 4 . . Weapon 18 | . . . . . . 1 1 2 1 1 . . 1 . 9 . . . 2 . . Tool/Special . | . . . . . . . . . . . . . . . . . . . . . . Average Slot Usage (%) 66 | . 100 95 64 88 88 86 61 61 55 61 46 38 52 13 62 91 45 61 75 69 85 Engine 3 | . 14 13 11 11 11 11 3 2 . 1 7 6 11 . 6 4 . 4 . . . Core 1 | . . . . . . . . 4 6 5 . . . . . 5 . . . . . Reactor 2 | . . . . . . . . . . . . . . . . . . . 7 6 7 Treads 4 | . 28 22 . . . . . . 1 . . . . . . . . 8 12 . . Leg 3 | . . . . . . . . . 5 15 15 8 5 . 2 . . . 2 1 . Wheel 1 | . . 2 11 11 11 11 5 . . . . . . . . . . . 4 . . Hover 3 | . . . . . . . . . 1 . . . 9 . 13 34 24 12 . . . Flight 6 | . . . 5 22 22 22 24 23 3 1 . . . . . . . . 1 24 27 Device 10 | . 14 14 12 22 22 22 1 7 6 6 7 7 5 . 10 10 5 8 13 10 13 Storage 4 | . 14 14 8 . . . 8 7 7 7 7 7 6 6 2 . . . . . . Processor 7 | . . . 1 11 11 11 9 7 7 7 7 7 . . 4 10 5 5 7 18 21 Hackware 2 | . . . . . . . . . . . . . 5 6 3 5 5 10 7 1 4 Energy Gun 4 | . 28 24 . . . . . 2 5 1 . . . . . . . . 6 4 . Ballistic Gun 3 | . . . . . . 9 5 1 5 1 . . . . 2 4 . 1 6 . 3 Impact Weapon 2 | . . . . . . . . 3 1 . . . 5 . 12 10 5 5 . . . Peak Build Rating 157 | 6 7 8 15 15 18 20 52 60 65 58 45 48 56 43 70 75 58 88 145 143 157 Average Rating 71 | 5 7 7 8 13 15 19 45 56 54 55 45 44 52 42 54 73 44 72 122 125 143 On Entrance 42 | . 6 7 5 15 14 18 20 50 58 55 45 45 42 42 43 63 36 58 78 109 132 Avg Prop Armor Cover (%) 15 | . . . 4 4 5 5 4 . 23 1 . . 9 . 8 . 25 24 24 15 . Naked Turns . | . . . . . . . . . . . . . . . . . . . . . . Heaviest Build 54 | 14 15 16 15 8 8 10 20 20 19 27 13 20 15 5 35 31 8 26 54 51 47 Greatest Support 180 | 40 40 40 16 10 10 10 16 19 20 20 20 20 15 3 44 64 10 60 180 48 57 Greatest Overweight (x) 3 | . . 3 . . . . 1 1 3 1 . 1 2 1 2 . . . 2 1 . Average Overweight (x) . | . . . . . . . . . . . . . . 1 . . . . . . . Largest Inventory Capacity 40 | 8 8 8 8 5 5 5 40 40 40 40 40 40 40 40 40 5 5 5 5 5 5 Average Capacity 21 | 7 8 8 7 5 5 5 39 40 40 40 40 40 40 40 19 5 5 5 5 5 5 Most Carried 32 | 4 4 8 6 5 5 5 18 24 26 26 26 27 30 31 32 5 4 5 5 5 5 Average Carried 13 | . 3 5 4 3 4 4 12 20 22 24 26 26 27 30 15 4 3 3 4 4 4 Final Capacity 40 | 8 8 8 5 5 5 5 40 40 40 40 40 40 40 40 5 5 5 5 5 5 5 Final Carried 31 | 4 4 6 4 5 5 5 18 24 23 26 26 26 30 31 5 5 3 5 5 5 5 Class Distribution -------------------- 41% | Hauler-Mutant 14% | Mutant 10% | Scavenger-Gunner 7% | Scavenger-Scout 6% | Scavenger-Tank 4% | Gladiator 3% | Scientist-Gladiator 3% | Hauler-Scout Dominant Class ---------------- Mutant | -10/Materials Mutant | -10/Mines Scavenger-Mutant | -9/Materials Scavenger-Mutant | -9/Mines Scavenger-Scout | -9/Exiles Scavenger-Scout | -8/Mines Hauler-Mutant | -8/Materials Hauler-Scout | -7/Factory Hauler-Mutant | -7/Lower Caves Hauler-Mutant | -7/Lower Caves Hauler-Mutant | -7/Data Miner Hauler-Mutant | -6/Proximity Caves Hauler-Mutant | -6/Factory Hauler-Mutant | -6/Waste Hauler-Mutant | -6/Factory Gladiator | -5/Factory Mutant | -4/Factory Hacker-Mutant | -4/DSF Scavenger-Gunner | -3/Research Mutant | -2/Research Scavenger-Scout | -1/Access Resources | -11 -10 -10 -9 -9 -9 -8 -8 -7 -7 -7 -7 -6 -6 -6 -6 -5 -4 -4 -3 -2 -1 ----------- Run | Yrd Mat Min Mat Min Exi Min Mat Fac Low Low Dat Pro Fac Was Fac Fac Fac DSF Res Res Acc Matter Collected 2945 | 260 . 36 105 . 40 . 212 5 492 228 . . 64 . 343 27 40 65 801 131 96 Remotely . | . . . . . . . . . . . . . . . . . . . . . . Salvage Created 4422 | 130 . 262 . . . . 248 55 371 55 . . 59 . 1263 27 43 . 1689 131 89 Parts 203 | 12 . 19 . . . . 20 5 12 1 . . 2 . 38 . 3 . 76 4 11 Haulers Intercepted 3 | . . . . . . . 1 . . . . . . . 2 . . . . . . Recyclers Shooed 4 | . . . . . . . . 1 . . . . . . 1 . . . 2 . . Parts Field Recycled . | . . . . . . . . . . . . . . . . . . . . . . Retrieved Matter . | . . . . . . . . . . . . . . . . . . . . . . Parts Self-Destructed 9 | . . . . . . . . . 9 . . . . . . . . . . . . Prevented . | . . . . . . . . . . . . . . . . . . . . . . Parts Restored . | . . . . . . . . . . . . . . . . . . . . . . Kills | -11 -10 -10 -9 -9 -9 -8 -8 -7 -7 -7 -7 -6 -6 -6 -6 -5 -4 -4 -3 -2 -1 ------- Run | Yrd Mat Min Mat Min Exi Min Mat Fac Low Low Dat Pro Fac Was Fac Fac Fac DSF Res Res Acc Combat Hostiles Destroyed 77 | . . 9 . . . . 10 7 11 4 . . 1 . 11 . . . 23 . 1 Melee 7 | . . . . . . . . . . . . . 1 . 5 . . . . . 1 Guns 32 | . . 8 . . . . . . 7 . . . . . . . . . 17 . . Cannons 4 | . . 1 . . . . . . . . . . . . . . . . 3 . . AOE 24 | . . . . . . . 10 7 3 4 . . . . . . . . . . . Classes Destroyed 13 | 3 . 3 . . . . 3 . 2 . . . 1 . 1 . . . . . . Worker 10 | 2 . . . . . . 1 . . . . . . . 4 . 2 . 1 . . Builder 8 | . . 2 . . . . . . . . . . . . 3 . . . 2 . 1 Tunneler 7 | 3 . 1 . . . . . . . . . . . . 2 1 . . . . . Hauler 3 | . . . . . . . 1 . . . . . . . 2 . . . . . . Recycler 6 | 1 . . . . . . . . . . . . . . 3 . . . 1 1 . Mechanic 1 | . . . . . . . . . . . . . 1 . . . . . . . . Watcher 1 | . . . . . . . . . . . . . . . 1 . . . . . . Swarmer 27 | . . 6 . . . . 3 7 5 . . . . . 1 . . . 5 . . Grunt 21 | . . 3 . . . . 5 . 2 2 . . . . 4 . . . 5 . . Duelist 1 | . . . . . . . . . 1 . . . . . . . . . . . . Sentry 7 | . . . . . . . 1 . 1 1 . . . . 1 . . . 3 . . Hunter 5 | . . . . . . . 1 . 1 . . . . . 3 . . . . . . Programmer 16 | . . . . . . . . . 1 1 . . 1 . 2 . . . 10 . 1 Best Kill Streak 8 | 3 . 3 . . . . 8 7 3 3 . . 1 . 4 1 2 . 6 1 1 Combat Bots Only 7 | . . 3 . . . . 7 7 3 3 . . 1 . 2 . . . 4 . 1 Max Kills in Single Turn 4 | 1 . 1 . . . . 4 3 3 1 . . 1 . 3 1 1 . 2 1 1 Gunslinging 1 | . . . . . . . . . . . . . . . . . . . 1 . . Exploded 3 | . . . . . . . 3 3 3 1 . . . . . . . . . . . Melee 1 | . . . . . . . . . . . . . 1 . 1 . . . . . 1 Uniques/NPCs Destroyed . | . . . . . . . . . . . . . . . . . . . . . . Combat | -11 -10 -10 -9 -9 -9 -8 -8 -7 -7 -7 -7 -6 -6 -6 -6 -5 -4 -4 -3 -2 -1 -------- Run | Yrd Mat Min Mat Min Exi Min Mat Fac Low Low Dat Pro Fac Was Fac Fac Fac DSF Res Res Acc Hostile Shots Fired 1301 | . 18 77 4 . . 3 35 21 125 43 . 20 23 2 141 32 . 179 500 28 50 Missed 477 | . 3 16 3 . . . 16 9 32 20 . 12 6 . 65 12 . 92 160 13 18 Hits 824 | . 15 61 1 . . 3 19 12 93 23 . 8 17 2 76 20 . 87 340 15 32 Melee 7 | . . . . . . . . . 1 . . . 4 2 . . . . . . . Projectile 817 | . 15 61 1 . . 3 19 12 92 23 . 8 13 . 76 20 . 87 340 15 32 AOE 1 | . . . . . . . . . . . . . . . . 1 . . . . . Critical Strikes 29 | . . 1 . . . . 1 . 3 . . . 2 . 4 1 . 2 14 . 1 Part Disruptions 2 | . . . . . . . . . . . . . . . 1 . . 1 . . . Damage Taken 15999 | . 165 667 12 . . 19 337 346 1660 279 . 92 377 78 1517 664 . 1674 7174 338 600 Core 3020 | . 12 115 12 . . 6 103 124 436 37 . 31 116 42 482 184 . 182 940 66 132 Absorbed by Shields . | . . . . . . . . . . . . . . . . . . . . . . Reduced by Siege Mode 168 | . . . . . . . . . . . . . . . . . . . 168 . . Core Remaining (%) 67 | 100 . 49 . . . 95 81 . . . . 10 . . 24 81 . 84 27 95 91 Volleys Fired 219 | 14 7 40 4 . . . 15 4 27 8 . 1 . . 1 . . . 76 5 17 Largest 4 | 2 2 2 1 . . . 2 2 2 2 . 1 . . 1 . . . 4 1 1 Hottest 320 | 100 100 100 100 . . . 78 100 108 108 . 39 . . 28 . . . 320 105 120 Shots Fired 450 | 28 14 74 4 . . . 19 8 48 15 . 1 . . 3 . . . 214 5 17 Gun 352 | 28 14 66 . . . . 2 4 47 2 . . . . 3 . . . 182 4 . Cannon 60 | . . 8 1 . . . 1 . . . . . . . . . . . 32 1 17 Launcher 35 | . . . . . . . 16 4 1 13 . 1 . . . . . . . . . Special 3 | . . . 3 . . . . . . . . . . . . . . . . . . Kinetic 161 | . . 8 1 . . . 2 . 34 1 . . . . 3 . . . 112 . . Thermal 244 | 28 14 66 3 . . . 1 4 13 1 . . . . . . . . 92 5 17 Explosive 35 | . . . . . . . 16 4 1 13 . 1 . . . . . . . . . Electromagnetic 10 | . . . . . . . . . . . . . . . . . . . 10 . . Robot Hit Streak 58 | 2 6 6 . . . . 5 . 24 11 . . . . . . . . 58 4 . Robot Miss Streak 8 | 3 3 3 . . . . 2 2 8 3 . . . . . . . . 3 1 . Penetration Max 1 | . . . . . . . . . . . . . . . . . . . 1 . . Secondary Targets 5 | . . 1 . . . . . . 1 . . . . . . . . . 3 . . Max Gunslinging Chain 1 | . . 1 . . . . . . 1 . . . . . . . . . 1 . . Shots Hit Robots 336 | 10 9 45 . . . . 10 . 41 10 . . 6 . 50 1 2 1 146 3 2 Core Hits 167 | 7 1 17 . . . . 23 8 29 13 . 4 2 . 10 . 1 . 49 2 1 Critical Kills 4 | . . . . . . . . . . . . . . . . . . . 4 . . Critical Parts Destroyed 23 | . . . . . . . . . 1 . . . 2 . 8 1 1 . 10 . . Critical Strikes 35 | 1 1 1 . . . . . . 1 . . . 2 . 8 1 1 . 18 . 1 Burn 7 | 1 1 1 . . . . . . . . . . . . . . . . 4 . . Destroy 14 | . . . . . . . . . . . . . . . . . . . 14 . . Smash 13 | . . . . . . . . . 1 . . . 2 . 8 1 1 . . . . Impale 1 | . . . . . . . . . . . . . . . . . . . . . 1 Melee Attacks 164 | . . . . . . . . . 11 . . . 18 . 106 4 6 2 . . 17 Impact 147 | . . . . . . . . . 11 . . . 18 . 106 4 6 2 . . . Slashing . | . . . . . . . . . . . . . . . . . . . . . . Piercing 17 | . . . . . . . . . . . . . . . . . . . . . 17 Sneak Attacks 18 | . . . . . . . . . . . . . 1 . 13 1 2 . . . 1 Combat Hostiles 1 | . . . . . . . . . . . . . . . 1 . . . . . . Follow-up Attacks 9 | . . . . . . . . . . . . . . . 9 . . . . . . Damage Inflicted 12788 | 126 113 601 . . . . 1082 669 1191 458 . 78 303 . 3112 107 172 27 4515 92 142 Guns 5259 | 126 113 493 . . . . 14 . 724 31 . . . . . . . . 3666 92 . Cannons 974 | . . 108 . . . . 20 . . . . . . . . . . . 846 . . Explosions 2735 | . . . . . . . 1048 669 240 427 . 78 . . 273 . . . . . . Melee 3817 | . . . . . . . . . 227 . . . 303 . 2839 107 172 27 . . 142 Ramming 3 | . . . . . . . . . . . . . . . . . . . 3 . . Kinetic 3061 | . . 108 . . . . 14 . 577 20 . . . . . . . . 2342 . . Thermal 3334 | 126 113 493 . . . . 20 . 147 11 . . . . 273 . . . 2059 92 . Explosive 2462 | . . . . . . . 1048 669 240 427 . 78 . . . . . . . . . Electromagnetic 111 | . . . . . . . . . . . . . . . . . . . 111 . . Impact 3675 | . . . . . . . . . 227 . . . 303 . 2839 107 172 27 . . . Slashing . | . . . . . . . . . . . . . . . . . . . . . . Piercing 142 | . . . . . . . . . . . . . . . . . . . . . 142 Highest Corruption 21 | . . . . . . . . . . . . . 1 9 14 2 . 1 21 1 2 Average Corruption 8 | . . . . . . . . . . . . . 1 7 9 1 . 1 8 1 2 Corruption Purged . | . . . . . . . . . . . . . . . . . . . . . . Corruption Blocked . | . . . . . . . . . . . . . . . . . . . . . . Effects 105 | . . . . . . . . . . . . . . 2 51 . . . 50 . 2 Message Errors 37 | . . . . . . . . . . . . . . . 16 . . . 21 . . Matter Fused 18 | . . . . . . . . . . . . . . . 9 . . . 9 . . Heat Flow Errors 16 | . . . . . . . . . . . . . . 1 9 . . . 5 . 1 Energy Discharges 5 | . . . . . . . . . . . . . . . 3 . . . 2 . . Parts Rejected 3 | . . . . . . . . . . . . . . . 2 . . . . . 1 Parts Fused 1 | . . . . . . . . . . . . . . . 1 . . . . . . Data Loss (minor) 11 | . . . . . . . . . . . . . . . 4 . . . 7 . . Data Loss (major) 4 | . . . . . . . . . . . . . . 1 2 . . . 1 . . Misfires 2 | . . . . . . . . . . . . . . . 2 . . . . . . Alerts 3 | . . . . . . . . . . . . . . . 3 . . . . . . Misdirections 4 | . . . . . . . . . . . . . . . . . . . 4 . . Weapon Failures 1 | . . . . . . . . . . . . . . . . . . . 1 . . Overload Shots . | . . . . . . . . . . . . . . . . . . . . . . Overflow Damage 1593 | . . . . . . . . 92 89 18 . . 88 . 1034 107 58 . 40 . 67 Projectiles 56 | . . . . . . . . . . . . . . . 16 . . . 40 . . Explosions 214 | . . . . . . . . 92 . 18 . . . . 104 . . . . . . Melee 1323 | . . . . . . . . . 89 . . . 88 . 914 107 58 . . . 67 Knockbacks 17 | . . 2 . . . . . . 2 . . . 2 . 10 . . 1 . . . Impact 14 | . . . . . . . . . 2 . . . 2 . 9 . . 1 . . . Kinetic 2 | . . 2 . . . . . . . . . . . . . . . . . . . Secondary 1 | . . . . . . . . . . . . . . . 1 . . . . . . Self-Inflicted Damage 410 | . . . . . . . 61 170 9 69 . . . . 101 . . . . . . Shots 9 | . . . . . . . 2 3 1 2 . . . . 1 . . . . . . Rammed . | . . . . . . . . . . . . . . . . . . . . . . Targets Rammed 2 | . . . . . . . . . . . . . . . . . . . 2 . . Kicked 2 | . . . . . . . . . . . . . . . . . . . 2 . . Crushed . | . . . . . . . . . . . . . . . . . . . . . . Highest Temperature 390 | 312 243 330 24 . . . 12 111 36 27 . . . 150 236 . . . 390 252 385 Average Temperature 85 | 106 104 97 12 . . . 9 65 9 15 . . . 76 101 . . . 73 86 95 Received Heat Transfer 2194 | . 90 309 6 . . . 72 . 441 27 . 33 81 . 295 18 . 153 633 36 . Effects 5 | 1 . 1 . . . . . . . . . . . . . . . . 2 . 1 Shutdowns 1 | . . . . . . . . . . . . . . . . . . . 1 . . Energy Bleed 4 | 1 . 1 . . . . . . . . . . . . . . . . 1 . 1 Siege Activations 10 | . . . . . . . . . . . . . . . . . . . 10 . . Total Turns 414 | . . . . . . . . . . . . . . . . . . . 414 . . Longest Duration 101 | . . . . . . . . . . . . . . . . . . . 101 . . Martial Activations . | . . . . . . . . . . . . . . . . . . . . . . Shielding Activations . | . . . . . . . . . . . . . . . . . . . . . . Robots Disrupted . | . . . . . . . . . . . . . . . . . . . . . . Combat Hostiles . | . . . . . . . . . . . . . . . . . . . . . . Robots Corrupted 12 | . . . . . . . . . 1 . . . . . 10 . . . 1 . . Combat Hostiles 7 | . . . . . . . . . 1 . . . . . 6 . . . . . . Parts Fried 23 | . . . . . . . . . . . . . . . 17 2 2 . 2 . . Impact Corruptions 39 | . . . . . . . . . 3 . . . 4 . 27 3 2 . . . . Robots Melted 3 | . . . . . . . . . . . . . . . . . . . 3 . . Combat Hostiles 3 | . . . . . . . . . . . . . . . . . . . 3 . . Parts Melted 16 | . . 4 . . . . . . . . . . . . . . . . 12 . . Heat Transferred 5811 | 444 407 1554 . . . . 37 . 272 25 . . . . 150 . . . 2811 111 . Parts Sabotaged . | . . . . . . . . . . . . . . . . . . . . . . Parts Stolen . | . . . . . . . . . . . . . . . . . . . . . . Parts Stripped . | . . . . . . . . . . . . . . . . . . . . . . Power Chain Reactions . | . . . . . . . . . . . . . . . . . . . . . . Alert | -11 -10 -10 -9 -9 -9 -8 -8 -7 -7 -7 -7 -6 -6 -6 -6 -5 -4 -4 -3 -2 -1 ------- Run | Yrd Mat Min Mat Min Exi Min Mat Fac Low Low Dat Pro Fac Was Fac Fac Fac DSF Res Res Acc Maximum Alert Level 2 | . . . . . . . 1 1 . . . . . . 2 . . . 1 . . Low Security (%) 90 | 100 100 100 100 100 . 100 58 20 . . . . 100 100 88 100 100 100 92 100 100 Level 1 8 | . . . . . . . 41 79 . . . . . . 6 . . . 7 . . Level 2 . | . . . . . . . . . . . . . . . 4 . . . . . . Level 3 . | . . . . . . . . . . . . . . . . . . . . . . Level 4 . | . . . . . . . . . . . . . . . . . . . . . . Level 5 . | . . . . . . . . . . . . . . . . . . . . . . High Security . | . . . . . . . . . . . . . . . . . . . . . . Max Security . | . . . . . . . . . . . . . . . . . . . . . . Peak Influence 465 | 10 . 95 3 . . . 369 358 . . . . 37 . 465 193 14 32 342 178 91 Initial 178 | . . . . . . . . 143 . . . . 32 . . 175 . . . 178 69 Average 71 | 2 . 39 . . . . 173 257 . . . . 8 . 86 105 4 12 82 67 24 Influence Increases 4005 | 30 . 270 3 . . . 476 255 305 90 . 85 72 . 918 29 26 32 1044 167 203 Destroy 0b10 Robot/C 1600 | . . 180 . . . . 200 140 260 80 . 20 20 . 220 . . . 460 . 20 Destroy 0b10 Robot/NC 185 | 30 . 15 . . . . 10 . 5 . . . 5 . 75 5 10 . 20 5 5 Destroy Leader 338 | . . 30 . . . . 52 20 30 10 . . 10 . 76 . . . 100 . 10 Allied During Kill 15 | . . . . . . . . . 10 . . 5 . . . . . . . . . Successful Hack 154 | . . . . . . . 8 . . . . . . . 19 18 14 . 26 24 45 Disable Machine 195 | . . 15 . . . . 45 60 . . . . 15 . 30 . . . . . 30 Destroy Structure 333 | . . . 3 . . . 101 35 . . . . 7 . 63 6 2 2 48 3 63 Partial Spotted 75 | . . . . . . . . . . . . . . . 15 . . . 15 15 30 Lose Combat Pursuer 1110 | . . 30 . . . . 60 . . . . 60 15 . 420 . . 30 375 120 . Influence Decreases 3980 | 30 . 270 3 . . . 160 343 532 91 . 33 124 . 559 388 26 30 728 368 295 Entered New Map 653 | . . . . . . . . 173 85 1 . . 20 . . 184 . . 2 140 48 Time Decay 2517 | 30 . 242 3 . . . 140 160 337 80 . 33 99 . 379 37 26 . 536 188 227 Search Patrol Dispatched 100 | . . . . . . . . . . . . . . . 100 . . . . . . Lost Part 493 | . . 28 . . . . 20 10 110 10 . . 5 . 70 . . 30 180 10 20 Lost Ally 50 | . . . . . . . . . . . . . . . 10 . . . 10 30 . Purge Threat 167 | . . . . . . . . . . . . . . . . 167 . . . . . Squads Dispatched 42 | . 1 . 1 . . . 3 . . . . . 2 . 9 . . 1 20 1 4 Investigation 6 | . . . . . . . 2 . . . . . . . 2 . . . 2 . . Extermination 16 | . . . . . . . . . . . . . 1 . 3 . . . 8 1 3 Reinforcement 17 | . 1 . 1 . . . 1 . . . . . 1 . 4 . . 1 7 . 1 Assault . | . . . . . . . . . . . . . . . . . . . . . . Garrison 3 | . . . . . . . . . . . . . . . . . . . 3 . . Intercept . | . . . . . . . . . . . . . . . . . . . . . . Searches Triggered 1 | . . . . . . . . . . . . . . . 1 . . . . . . Data Miner Redirects 1 | . . . . . . . . . . . . . . . . . . . 1 . . Construction Impeded . | . . . . . . . . . . . . . . . . . . . . . . Haulers Reinforced 2 | . . . . . . . . . . . . . . . 2 . . . . . . Active Scanning Responses . | . . . . . . . . . . . . . . . . . . . . . . Cargo Convoy Interrupts . | . . . . . . . . . . . . . . . . . . . . . . Stealth | -11 -10 -10 -9 -9 -9 -8 -8 -7 -7 -7 -7 -6 -6 -6 -6 -5 -4 -4 -3 -2 -1 --------- Run | Yrd Mat Min Mat Min Exi Min Mat Fac Low Low Dat Pro Fac Was Fac Fac Fac DSF Res Res Acc Distress Signals 9 | . . . . . . . 2 . . . . . . . 2 3 . . . 2 . Communications Jammed 2 | . . . . . . . . . . . . . . . 1 . . . 1 . . Distress Signals 2 | . . . . . . . . . . . . . . . 1 . . . 1 . . Times Spotted 242 | . 5 13 6 . . 4 22 5 14 6 . 6 7 6 41 15 . 8 60 20 4 Peak Tracking Total 15 | . 3 3 5 . . 4 10 7 9 3 . 4 3 6 14 9 . 7 13 15 2 Tactical Retreats 32 | . . 2 . . . . 2 . . . . 1 1 . 12 1 . 2 10 1 . Traps | -11 -10 -10 -9 -9 -9 -8 -8 -7 -7 -7 -7 -6 -6 -6 -6 -5 -4 -4 -3 -2 -1 ------- Run | Yrd Mat Min Mat Min Exi Min Mat Fac Low Low Dat Pro Fac Was Fac Fac Fac DSF Res Res Acc Traps Triggered 11 | . . . . . . . 1 . . . . . 1 . 4 1 . . 3 1 . Indirectly . | . . . . . . . . . . . . . . . . . . . . . . Trap Hack Attempts . | . . . . . . . . . . . . . . . . . . . . . . Triggered . | . . . . . . . . . . . . . . . . . . . . . . Disarmed . | . . . . . . . . . . . . . . . . . . . . . . Reprogrammed . | . . . . . . . . . . . . . . . . . . . . . . Reused . | . . . . . . . . . . . . . . . . . . . . . . Traps Extracted . | . . . . . . . . . . . . . . . . . . . . . . Installed . | . . . . . . . . . . . . . . . . . . . . . . Triggered . | . . . . . . . . . . . . . . . . . . . . . . Machines | -11 -10 -10 -9 -9 -9 -8 -8 -7 -7 -7 -7 -6 -6 -6 -6 -5 -4 -4 -3 -2 -1 ---------- Run | Yrd Mat Min Mat Min Exi Min Mat Fac Low Low Dat Pro Fac Was Fac Fac Fac DSF Res Res Acc Machines Disabled 13 | . . 1 . . . . 3 4 . . . . 1 . 2 . . . . . 2 Max in Single Turn 4 | . . 1 . . . . 1 4 . . . . 1 . 2 . . . . . 1 Machines Repaired . | . . . . . . . . . . . . . . . . . . . . . . Machines Dismantled . | . . . . . . . . . . . . . . . . . . . . . . Machines Sabotaged . | . . . . . . . . . . . . . . . . . . . . . . Overloaded Fab Kills . | . . . . . . . . . . . . . . . . . . . . . . Hacking | -11 -10 -10 -9 -9 -9 -8 -8 -7 -7 -7 -7 -6 -6 -6 -6 -5 -4 -4 -3 -2 -1 --------- Run | Yrd Mat Min Mat Min Exi Min Mat Fac Low Low Dat Pro Fac Was Fac Fac Fac DSF Res Res Acc Machines Accessed 34 | . . . . . 1 . 2 1 . . 4 . 2 . 5 4 2 . 5 2 6 Terminals 18 | . . . . . . . 2 1 . . . . 1 . 1 3 2 . 3 1 4 Fabricators 1 | . . . . . . . . . . . . . . . . . . . 1 . . Repair Stations 1 | . . . . . . . . . . . . . 1 . . . . . . . . Recycling Units 1 | . . . . . . . . . . . . . . . 1 . . . . . . Scanalyzers 6 | . . . . . . . . . . . . . . . 3 1 . . . 1 1 Garrison Access 2 | . . . . . . . . . . . . . . . . . . . 1 . 1 Total Hacks 103 | . . . . . 1 . 4 2 . . 29 . 3 . 19 13 7 . 10 4 11 Successful 53 | . . . . . 1 . 1 . . . 29 . 1 . 9 5 2 . 2 1 2 Failed 49 | . . . . . . . 3 2 . . . . 2 . 10 8 5 . 8 2 9 Catastrophic 14 | . . . . . . . 2 . . . . . 1 . 2 2 . . 2 . 5 Database Lockouts 1 | . . . . . . . . . . . . . . . . . . . . 1 . Manual 17 | . . . . . 1 . 2 2 . . . . 1 . . 6 . . 2 1 2 Terminals 48 | . . . . . . . 4 2 . . . . 2 . 4 11 7 . 8 2 8 Fabricators 1 | . . . . . . . . . . . . . . . . . . . 1 . . Repair Stations 1 | . . . . . . . . . . . . . 1 . . . . . . . . Recycling Units 2 | . . . . . . . . . . . . . . . 2 . . . . . . Scanalyzers 19 | . . . . . . . . . . . . . . . 13 2 . . . 2 2 Garrison Access 2 | . . . . . . . . . . . . . . . . . . . 1 . 1 Terminal Hacks 41 | . . . . . 1 . 1 . . . 29 . . . 1 4 2 . 2 . 1 Record 13 | . . . . . . . . . . . 11 . . . . . . . 1 . 1 Part Schematic 11 | . . . . . . . . . . . 11 . . . . . . . . . . Robot Schematic 4 | . . . . . . . . . . . 4 . . . . . . . . . . Prototype ID Bank 3 | . . . . . . . . . . . 3 . . . . . . . . . . Open DSF 1 | . . . . . . . . . . . . . . . . . 1 . . . . Level Access Points 1 | . . . . . . . . . . . . . . . . 1 . . . . . Branch Access Points 1 | . . . . . . . 1 . . . . . . . . . . . . . . Terminal Index 2 | . . . . . . . . . . . . . . . . 1 1 . . . . Unreport Threat 2 | . . . . . . . . . . . . . . . . 2 . . . . . Zone Layout 2 | . . . . . . . . . . . . . . . 1 . . . 1 . . Proto ID Catalog 1 | . . . . . 1 . . . . . . . . . . . . . . . . Fabricator Hacks . | . . . . . . . . . . . . . . . . . . . . . . Repair Station Hacks 1 | . . . . . . . . . . . . . 1 . . . . . . . . Refit 1 | . . . . . . . . . . . . . 1 . . . . . . . . Recycling Unit Hacks . | . . . . . . . . . . . . . . . . . . . . . . Scanalyzer 11 | . . . . . . . . . . . . . . . 8 1 . . . 1 1 Insert Component 1 | . . . . . . . . . . . . . . . 1 . . . . . . Analyze 3 | . . . . . . . . . . . . . . . 3 . . . . . . Retrieve Study 7 | . . . . . . . . . . . . . . . 4 1 . . . 1 1 Garrison Access Hacks . | . . . . . . . . . . . . . . . . . . . . . . Unauthorized Hacks . | . . . . . . . . . . . . . . . . . . . . . . Terminals . | . . . . . . . . . . . . . . . . . . . . . . Fabricators . | . . . . . . . . . . . . . . . . . . . . . . Repair Stations . | . . . . . . . . . . . . . . . . . . . . . . Recycling Units . | . . . . . . . . . . . . . . . . . . . . . . Scanalyzers . | . . . . . . . . . . . . . . . . . . . . . . Garrison Access . | . . . . . . . . . . . . . . . . . . . . . . Data Cores Recovered . | . . . . . . . . . . . . . . . . . . . . . . Used . | . . . . . . . . . . . . . . . . . . . . . . Hacking Detections 28 | . . . . . . . 2 1 . . . . 2 . 4 4 2 . 5 2 6 Full Trace Events 1 | . . . . . . . 1 . . . . . . . . . . . . . . Feedback Events . | . . . . . . . . . . . . . . . . . . . . . . Feedback Blocked . | . . . . . . . . . . . . . . . . . . . . . . Robot Schematics Acquired 4 | . . . . . . . . . . . 4 . . . . . . . . . . Robots Built . | . . . . . . . . . . . . . . . . . . . . . . Authchips . | . . . . . . . . . . . . . . . . . . . . . . Time . | . . . . . . . . . . . . . . . . . . . . . . Total Robot Build Rating . | . . . . . . . . . . . . . . . . . . . . . . Part Schematics Acquired 12 | . . . . . . . . . . . 11 . . . 1 . . . . . . Parts Built . | . . . . . . . . . . . . . . . . . . . . . . Authchips . | . . . . . . . . . . . . . . . . . . . . . . Time . | . . . . . . . . . . . . . . . . . . . . . . Total Part Build Rating . | . . . . . . . . . . . . . . . . . . . . . . Part Studies Acquired 7 | . . . . . . . . . . . . . . . 4 1 . . . 1 1 Parts Repaired . | . . . . . . . . . . . . . . . . . . . . . . Time . | . . . . . . . . . . . . . . . . . . . . . . Parts Recycled . | . . . . . . . . . . . . . . . . . . . . . . Recycled Matter . | . . . . . . . . . . . . . . . . . . . . . . Retrieved Matter . | . . . . . . . . . . . . . . . . . . . . . . Retrieved Components . | . . . . . . . . . . . . . . . . . . . . . . Parts Scanalyzed 1 | . . . . . . . . . . . . . . . 1 . . . . . . Part Schematics Acquired 1 | . . . . . . . . . . . . . . . 1 . . . . . . Parts Damaged . | . . . . . . . . . . . . . . . . . . . . . . Bothacking | -11 -10 -10 -9 -9 -9 -8 -8 -7 -7 -7 -7 -6 -6 -6 -6 -5 -4 -4 -3 -2 -1 ------------ Run | Yrd Mat Min Mat Min Exi Min Mat Fac Low Low Dat Pro Fac Was Fac Fac Fac DSF Res Res Acc Used RIF Installer . | . . . . . . . . . . . . . . . . . . . . . . Robots Hacked . | . . . . . . . . . . . . . . . . . . . . . . Non-combat . | . . . . . . . . . . . . . . . . . . . . . . Combat . | . . . . . . . . . . . . . . . . . . . . . . Robot Hacks Applied . | . . . . . . . . . . . . . . . . . . . . . . Relay Couplers Released . | . . . . . . . . . . . . . . . . . . . . . . Fabnet Peak Effective % . | . . . . . . . . . . . . . . . . . . . . . . Robots Rewired 2 | . . . . . . . . . 2 . . . . . . . . . . . . Allies Hacked 2 | . . . . . . . . . 2 . . . . . . . . . . . . Hacks Repelled . | . . . . . . . . . . . . . . . . . . . . . . Allies | -11 -10 -10 -9 -9 -9 -8 -8 -7 -7 -7 -7 -6 -6 -6 -6 -5 -4 -4 -3 -2 -1 -------- Run | Yrd Mat Min Mat Min Exi Min Mat Fac Low Low Dat Pro Fac Was Fac Fac Fac DSF Res Res Acc Total Allies 3 | . . . . . . . . . 2 . . 1 . . . . . . . . . Largest Group 2 | . . . . . . . . . 2 . . 1 . . . . . . . . . Highest-Rated Group 96 | . . . . . . . . . 62 . . 96 . . . . . . . . . Highest-Rated Ally 96 | . . . . . . . . . 32 . . 96 . . . . . . . . . Total Orders 6 | . . . . . . . . . . . . . . . 1 . . . 1 4 . EXPLORE 6 | . . . . . . . . . . . . . . . 1 . . . 1 4 . Ally Attacks 15 | . . . . . . . . . 10 . . 5 . . . . . . . . . Total Damage 506 | . . . . . . . . . 327 . . 179 . . . . . . . . . Kills 3 | . . . . . . . . . 2 . . 1 . . . . . . . . . Allies Corrupted . | . . . . . . . . . . . . . . . . . . . . . . Allies Melted . | . . . . . . . . . . . . . . . . . . . . . . Intel | -11 -10 -10 -9 -9 -9 -8 -8 -7 -7 -7 -7 -6 -6 -6 -6 -5 -4 -4 -3 -2 -1 ------- Run | Yrd Mat Min Mat Min Exi Min Mat Fac Low Low Dat Pro Fac Was Fac Fac Fac DSF Res Res Acc Active Infowar (turns) 6913 | . 194 580 74 87 112 101 8 328 1282 738 169 687 375 . 481 . . . 570 472 655 Optics 1167 | . . . . . . . . . . . . . . . . . . . 40 472 655 Terrain 2462 | . . . 18 10 38 101 7 328 841 491 . . . . . . . . . . 628 Structural 3293 | . . 388 55 77 112 101 8 . 441 247 169 687 375 . . . . . . . 633 Seismic 561 | . 194 192 20 87 68 . . . . . . . . . . . . . . . . Jamming 1011 | . . . . . . . . . . . . . . . 481 . . . 530 . . Robot Analysis Total . | . . . . . . . . . . . . . . . . . . . . . . Derelict Logs Recovered 3 | . . 1 . . . . . . 1 . . 1 . . . . . . . . . Drone Launches 11 | . . . . . . . . . . . . . . . 2 . . . 2 7 . Drone Recoveries 2 | . . . . . . . . . . . . . . . 1 . . . . 1 . Exploration | -11 -10 -10 -9 -9 -9 -8 -8 -7 -7 -7 -7 -6 -6 -6 -6 -5 -4 -4 -3 -2 -1 ------------- Run | Yrd Mat Min Mat Min Exi Min Mat Fac Low Low Dat Pro Fac Was Fac Fac Fac DSF Res Res Acc Turns Passed 10612 | 158 194 581 74 87 112 101 320 328 1462 741 169 687 414 83 1415 124 67 134 2234 472 655 Spaces Moved 7598 | 68 94 288 71 199 256 86 289 218 743 380 129 403 282 83 1140 300 98 105 1272 367 727 Core 278 | 4 . 4 . . . . . . 3 . . . 30 83 21 . . . 133 . . Treads 653 | 64 94 220 . . . . . . 4 . . . . . . . . 40 231 . . Legs 1696 | . . . . . . . . . 536 380 129 403 13 . 193 . . . 42 . . Wheels 715 | . . 64 33 . . . 48 . . . . . . . 58 . . . 512 . . Hover 1572 | . . . . . . . . . 2 . . . 239 . 868 300 98 65 . . . Flight 2684 | . . . 38 199 256 86 241 218 198 . . . . . . . . . 354 367 727 Fastest Speed 12 | 50 160 100 42 42 42 42 34 29 32 120 120 120 76 100 36 33 40 40 19 12 12 Average Speed 85 | 153 160 147 68 42 42 42 48 36 166 159 120 165 101 100 57 34 48 89 94 20 12 Slowest Speed 260 | 160 160 200 100 42 42 42 115 105 200 190 120 190 250 100 180 52 50 170 260 97 16 Overloaded Moves . | . . . . . . . . . . . . . . . . . . . . . . Propulsion Burnouts . | . . . . . . . . . . . . . . . . . . . . . . Robots Hopped 29 | . . . . . . 2 8 . . . . . . . . . . . 10 8 1 Potential Cave-ins 6 | . . . . . . . . . . . . . . . 6 . . . . . . Cave-ins Triggered . | . . . . . . . . . . . . . . . . . . . . . . Exploration Rate (%) 38 | 5 27 76 10 45 61 27 32 7 83 53 75 53 10 76 26 11 3 88 38 15 26 Regions Visited 21 Branch Regions 8 Pre-discovered Areas 3 | . . 1 . . . . . . 1 . 1 . . . . . . . . . . Known Exits Taken 5 | . . . 1 . . . . . . . . . . . . 1 1 . 1 1 . Unknown Exits Taken 13 | 1 1 1 . 1 1 1 1 1 1 1 1 1 . . 1 . . . . . . Scrap Searched 12 | . . 1 . . . . . . 4 6 . 1 . . . . . . . . . Spaces Dug 90 | . . . 3 . . . . . . . . . 7 . 46 3 1 1 7 1 21 Terrain Destroyed 425 | . . . 3 . . . 115 50 7 102 . 20 7 . 69 3 1 1 25 1 21 Melee 68 | . . . . . . . . . . . . . 7 . 46 3 1 1 . . 10 Projectile 40 | . . . 3 . . . . . . . . . . . . . . . 25 1 11 AOE 317 | . . . . . . . 115 50 7 102 . 20 . . 23 . . . . . . Terrain Rammed . | . . . . . . . . . . . . . . . . . . . . . . Walls Destroyed . | . . . . . . . . . . . . . . . . . . . . . . Machines Disabled . | . . . . . . . . . . . . . . . . . . . . . . Actions | -11 -10 -10 -9 -9 -9 -8 -8 -7 -7 -7 -7 -6 -6 -6 -6 -5 -4 -4 -3 -2 -1 --------- Run | Yrd Mat Min Mat Min Exi Min Mat Fac Low Low Dat Pro Fac Was Fac Fac Fac DSF Res Res Acc Total 11052 | 91 124 370 86 201 261 149 441 457 898 498 143 421 378 83 1760 314 108 144 2138 747 1240 Wait 2713 | . 22 35 1 . . 60 109 219 68 98 15 14 66 . 478 2 . 21 697 350 458 Move 7526 | 67 93 287 70 198 255 81 275 217 742 379 128 402 282 82 1139 299 97 104 1253 352 724 Hop 22 | . . . . . . 2 5 . . . . . . . . . . . 8 6 1 Pick Up 103 | 4 1 3 1 1 2 2 18 6 5 5 . 1 6 1 11 3 . 3 21 5 4 Fast Attach 103 | 6 . 2 2 . . 1 4 4 8 2 . . 1 . 18 . 3 4 27 13 8 Attach 55 | . 1 2 4 . 1 . 4 2 5 1 . 1 2 . 11 1 2 3 10 4 1 Detach 21 | . . 1 2 . . . 5 3 1 . . . 1 . 1 . . . 3 3 1 Swap 27 | . . . . 1 . . 2 1 2 3 . . 1 . 3 1 . . 12 . 1 Drop 76 | . . . 2 1 3 3 4 1 . 2 . 2 1 . 3 2 . 7 28 9 8 Fire 219 | 14 7 40 4 . . . 15 4 27 8 . 1 . . 1 . . . 76 5 17 Melee 153 | . . . . . . . . . 11 . . . 18 . 95 4 6 2 . . 17 Ram . | . . . . . . . . . . . . . . . . . . . . . . Kick 2 | . . . . . . . . . . . . . . . . . . . 2 . . Crush . | . . . . . . . . . . . . . . . . . . . . . . Escape Stasis 2 | . . . . . . . . . . . . . . . . 2 . . . . . Rewire 30 | . . . . . . . . . 29 . . . . . . . . . 1 . . Trap . | . . . . . . . . . . . . . . . . . . . . . . Miscellaneous . | . . . . . . . . . . . . . . . . . . . . . . Route ------- -11/Scrapyard -10/Materials -10/Mines (discovered 2 exits: [*Mat] / [Sub]) -9/Materials (discovered 2 exits: *Min / Sto) -9/Mines -9/Exiles -8/Mines -8/Materials -7/Factory -7/Lower Caves -7/Lower Caves (discovered 2 exits: *Fac / *Dat) -7/Data Miner -6/Proximity Caves -6/Factory -6/Waste -6/Factory -5/Factory (discovered 4 exits: *Fac x4) -4/Factory -4/DSF -3/Research (discovered 2 exits: *Res / *Qua) -2/Research -1/Access To Epsilon Eridani History --------- Turn | Location | Event 10 | -11/Scrapyard | Discovered new exit (range 14) 159 | -11/Scrapyard | Entered Materials 313 | -10/Materials | Build established: Mutant 332 | -10/Materials | Discovered new exit (range 13) 353 | -10/Materials | Entered Mines 358 | -10/Mines | Learned location of Storage (-9) 676 | -10/Mines | Discovered new exit (range 16) 849 | -10/Mines | Learned 2 Materials zone layouts 859 | -10/Mines | Lost 4 parts (1p2n1w) 911 | -10/Mines | Discovered new exit (range 10) 926 | -10/Mines | Core integrity fell below 50% 934 | -10/Mines | Entered Materials 934 | -9/Materials | Evolved 2 slots: Propulsion x1, Utility x1 935 | -9/Materials | Identified exit to Mines 935 | -9/Materials | Identified exit to Storage 1008 | -9/Materials | Entered Mines 1078 | -9/Mines | Found a Scrap Suit stashed away for nefarious purposes 1079 | -9/Mines | Found Scrap Suit 1093 | -9/Mines | Deemed a non-threat by the Exiles lab entrance 1093 | -9/Mines | Discovered new exit (range 5) 1095 | -9/Mines | Entered Exiles 1106 | -9/Exiles | Met 8R-AWN 1112 | -9/Exiles | Met EX-HEX 1126 | -9/Exiles | Met EX-BIN 1133 | -9/Exiles | Aligned with FarCom system 1134 | -9/Exiles | Given EX-Vault access code 1143 | -9/Exiles | Opened EX-Vault 1147 | -9/Exiles | Found Lightpack 2.0 1156 | -9/Exiles | Warned to stay clear of 0b10 Research branches 1169 | -9/Exiles | Met EX-DEC 1185 | -9/Exiles | Discovered new exit (range 10) 1207 | -9/Exiles | Left Exiles lab with Lightpack 2.0 1207 | -9/Exiles | Entered Mines 1306 | -8/Mines | Discovered new exit (range 5) 1308 | -8/Mines | Entered Materials 1308 | -8/Materials | Evolved 2 slots: Propulsion x1, Utility x1 1531 | -8/Materials | Destroyed 7 combat bots 1597 | -8/Materials | Build established: Hauler-Mutant 1623 | -8/Materials | Discovered new exit (range 3) 1628 | -8/Materials | Entered Factory 1628 | -7/Factory | Evolved 2 slots: Propulsion x1, Utility x1 1726 | -7/Factory | Destroyed 7 combat bots 1897 | -7/Factory | Build established: Hauler-Scout 1911 | -7/Factory | Discovered new exit (range 9) 1956 | -7/Factory | Entered Lower Caves 2217 | -7/Lower Caves | Attracted the attention of an 0b10 outpost 2279 | -7/Lower Caves | Core integrity fell below 50% 2289 | -7/Lower Caves | Build established: Hauler-Mutant 2329 | -7/Lower Caves | Lost 10 parts (1p5n1u3w) 2333 | -7/Lower Caves | Learned location of Zion (-6) 3046 | -7/Lower Caves | Encountered a Warlord checkpoint 3169 | -7/Lower Caves | Lost 3 allies 3318 | -7/Lower Caves | Discovered new exit (range 16) 3418 | -7/Lower Caves | Entered another Lower Caves area 3428 | -7/Lower Caves | Discovered new exit (range 7) 3593 | -7/Lower Caves | Attracted the attention of an 0b10 checkpoint 3597 | -7/Lower Caves | Core integrity fell below 20% 4101 | -7/Lower Caves | Discovered new exit (range 14) 4130 | -7/Lower Caves | Attacked by a delusional Derelict stockpiling Unaware 4157 | -7/Lower Caves | Spotted B-75 Beast 4159 | -7/Lower Caves | Entered Data Miner 4159 | -7/Data Miner | Discovered new exit (range 6) 4168 | -7/Data Miner | Lost 3 parts (1n2w) 4182 | -7/Data Miner | Met Data Miner 4203 | -7/Data Miner | Learned location of Section 7 (-3) 4203 | -7/Data Miner | Acquired the access code to Warlord's prototype stash 4223 | -7/Data Miner | Received God Mode back door access code from Data Miner 4328 | -7/Data Miner | Entered Proximity Caves 4439 | -6/Proximity Caves | Attracted the attention of an 0b10 checkpoint 4440 | -6/Proximity Caves | Escorted by Enhanced Grunt 4656 | -6/Proximity Caves | Learned Factory machine intel 4995 | -6/Proximity Caves | Discovered new exit (range 13) 5015 | -6/Proximity Caves | Entered Factory 5015 | -6/Factory | Evolved 2 slots: Power x1, Weapon x1 5016 | -6/Factory | Loaded intel: 304 machine locations 5429 | -6/Factory | Sucked down chute 5429 | -6/Factory | Entered Waste 5431 | -6/Waste | Lost 5 parts (2p2n1u) 5438 | -6/Waste | Spotted C-40 Crusher 5444 | -6/Waste | EMP discharged 5457 | -6/Waste | Spotted C-40 Crusher 5460 | -6/Waste | Spotted C-40 Crusher 5472 | -6/Waste | Spotted C-40 Crusher 5498 | -6/Waste | Spotted C-40 Crusher 5503 | -6/Waste | Discovered new exit (range 10) 5512 | -6/Waste | Entered Factory 6113 | -6/Factory | Core integrity fell below 50% 6172 | -6/Factory | Lost 4 parts (1p1n2u) 6675 | -6/Factory | Build established: Scientist-Gladiator 6792 | -6/Factory | System corruption reached 10% 6899 | -6/Factory | Spotted B-75 Beast 6912 | -6/Factory | Search patrols dispatched 6923 | -6/Factory | Discovered new exit (range 11) 6927 | -6/Factory | Entered another Factory area 6927 | -5/Factory | Evolved 2 slots: Propulsion x2 6933 | -5/Factory | Identified exit to Factory 7051 | -5/Factory | Entered another Factory area 7051 | -4/Factory | Evolved 2 slots: Utility x2 7081 | -4/Factory | Lost 9 parts (2p3n2u2w) 7118 | -4/Factory | Identified exit to DSF 7118 | -4/Factory | Entered DSF 7151 | -4/DSF | Additional patrols routed to DSF 7221 | -4/DSF | Discovered new exit (range 14) 7252 | -4/DSF | Entered Research 7252 | -3/Research | Evolved 2 slots: Propulsion x1, Weapon x1 7278 | -3/Research | Lost 3 parts (1p1u1w) 7302 | -3/Research | Garrison activated, responded to threat 7714 | -3/Research | Build established: Scavenger-Tank 8367 | -3/Research | Build established: Scavenger-Gunner 8724 | -3/Research | System corruption reached 10% 9114 | -3/Research | Lost 3 parts (1p1n1u) 9203 | -3/Research | Core integrity fell below 50% 9218 | -3/Research | Lost 13 parts (1p5n3u4w) 9422 | -3/Research | Discovered new exit (range 62) 9429 | -3/Research | Identified exit to Quarantine 9440 | -3/Research | Discovered new exit (range 25) 9470 | -3/Research | Incoming investigation squad redirected 9486 | -3/Research | Identified exit to Research 9486 | -3/Research | Entered another Research area 9486 | -2/Research | Evolved 2 slots: Power x1, Utility x1 9712 | -2/Research | Central database locked down 9764 | -2/Research | Build established: Mutant 9955 | -2/Research | Discovered new exit (range 19) 9957 | -2/Research | Identified exit to Access 9958 | -2/Research | Entered Access 9958 | -1/Access | Evolved 2 slots: Utility x2 10283 | -1/Access | Build established: Scavenger-Scout 10570 | -1/Access | Found Prototype Processor 10570 | -1/Access | Identified Spectral Analyzer 10597 | -1/Access | Spotted B-99 Colossus 10598 | -1/Access | Spotted B-99 Colossus 10610 | -1/Access | Discovered new exit (range 5) 10613 | -1/Access | Identified exit to Surface 10613 | *** | Escaped! Last Messages --------------- 10598_ Slug penetrates Wall. 10599_ Sealed Heavy Doors breached. 10602_ Penetrated by Slug. 10602_ Slug penetrates Reinforced Barrier. 10603_ System corrupted: Adv. Thermal Shield rejected. 10605_ Penetrated by Slug. 10605_ Slug penetrates Reinforced Barrier. 10605_ Penetrated by Slug. 10605_ Slug penetrates Reinforced Barrier. 10608_ Slug penetrates Sealed Heavy Doors. 10608_ Mic. Antimatter Reactor+ destroyed. 10608_ Slug penetrates Sealed Heavy Doors. 10609_ Mic. Antimatter Reactor+ destroyed. 10609_ Penetrated by Slug. 10609_ Slug penetrates Sealed Heavy Doors. 10610_ Acquired 7 matter. 10610_ Main Access Shell breached. 10610_ EXIT=FOUND 10613_ EXIT=IDENTIFIED: SURFACE Map ----- +----------------------------------------------------+ | ?????## ##??#?#?????## """ # # | | ?????## ##?????#??#?## """ ####### | | ?????## ##??????????## = ####### | | ?????## ###########?## ###?### " | | ?? ??## ###########?################??### | | ?????## # " ##?################??### | | ! ?? #######+## """ ###????????????#???#?### | | ##### # """ ##?#????#??#???????##### ! | | ! "" # " ##?????#????##?????#####"## | | T" + ##??#??????????#??### [ | | ########## # ##???#???????#??##### | | ########### ## ##????????????????### | | ##?### ## ##?????#?????????#### | | ##??## ## ##???????#?##?##???## = | | ##??## ############??##????????##???## = | | ##??## ############???#????????#?#??## | | ##??## ##???????#???????????????#?#?## | | ##??## ##?????????#????????#?#??????## | | ##??## ############################### | | # ##??## #######"####################### | | # ##??## """T"""" """" ! % ### ## | | # ##??## """ """"???? " %BB ### # | | # ###### "??"""""" "" BB% ###= # | | #+##/###### " ?" " """" BB % # | | ## "??" "" "??" BB % # | | ## "??" @" " "??" # | | "" ## "??" " ""?" # | | "" ## "??"""""" "??" #"#"#### | | """""" ] ## "??????? "??" ######## | | """""" ## "?????? """" ######??? | | "" ## #######"??????################??????? | | "" ## ##############################??????? | | [## ###############?????????????????????? | | ## # """"" ##?????????#???????????? | | ## # """"" ##??????#??????????????? | | ## # """"" ##?????????????????????? | | #####+##### # """"" ##?????????????????????? | | # """"" ##?????????????????????? | | + ##?????????????????????? | | +### #####+## ##?????????????????????? | | # # # ] ##?????????????????????? | | ? # ?????? # ##?????????????????????? | | ?? # ?????? # "" "" ##?????????????????????? | | ?? # ?? ???? # ""T"" ##?????????????????????? | | ? # ??????? # """ ##?????????????????????? | | ? # ?? ??? ###############?????????????????????? | | ?? # ??????? ###############?????????????????????? | | ? # ?????? ?????????????????????????????????????? | | ? # ????????????????????????????????????????????? | | ? ??? ???????????????????????????????????????????? | +----------------------------------------------------+ Best States ------------- Heat Dissipation 134 Energy Generation 37 Energy Capacity 360 Matter Stores 300 Matter Capacity 300 Sight Range 22 Terrain Scan Range 16 Terrain Scan Density 85 Jamming Range 16 Resistance: TH 30 Melee Speed Boost 20 Evasion (%) 67 Targeting Accuracy 8 Melee Accuracy 8 Target Analysis 5 Armor Integrity Analysis 40 Recoil Reduction 6 Offensive Hacking 14 Defensive Hacking 10 Item Schematics ----------------- Combat Drone Bay | -7/Data Miner | Free Lgt. Regenerative Plating | -7/Data Miner | Free Cld. Cesium-ion Thruster | -7/Data Miner | Free Thermal Defense Suite | -7/Data Miner | Free Antimatter Cannon | -7/Data Miner | Free Field Propulsion Drive | -7/Data Miner | Free Adv. Recoil Stabilizer | -7/Data Miner | Free Wave Gun | -7/Data Miner | Free Imp. Proton Missile Launcher | -7/Data Miner | Free Hyp. Coil Gun | -7/Data Miner | Free Imp. Shock Absorption System | -7/Data Miner | Free Cld. Airjet | -6/Factory | Scanalyzed Robot Schematics ------------------ A-15 Conveyor | -7/Data Miner | Free R-10 Processor | -7/Data Miner | Free W-25 Informer | -7/Data Miner | Free H-55 Commando | -7/Data Miner | Free Fabricated ------------ Nothing Repaired ---------- Nothing Studied --------- Powered Hammer | -6/Factory | Hacked Hvy. Mace | -6/Factory | Hacked Gravmag System | -6/Factory | Hacked Lgt. Deuterium Engine | -6/Factory | Hacked Gyrokinetic Inverter | -5/Factory | Hacked Mic. Antimatter Reactor | -2/Research | Hacked Enh. Quantum Rifle | -1/Access | Hacked Alien Tech Used ----------------- None Achievements -------------- None Challenges ------------ None Game ------ Seed PietyPhysicsRailcannon Manual? 0 Play Time 01:51:59 Cumulative 254.8 hours Start 2026.08.07 @ 14:50:52 End 2026.08.07 @ 16:56:32 Sessions 1 Manual Loads 0 Difficulty Rogue Special Mode None Game No. 334 Rogue 334 Adventurer 0 Explorer 0 Win Type 0 Total 5 Types 4/0/0/1/0/0/0/0/0/0 Lore% 78 Gallery% 65 Achievement% 53 Wizard Run 0 Options --------- Layout 2 ASCII 0 Keyboard 0 Movement Mouse Keybinds 0 Fullscreen 1 Font 24/Smallcaps Map View 50x44 Zoom Use 0% Tactical HUD 1 Map Filters NONE Filters NONE Steam 1 RUN: e4181fcf-e668-4859-952f-02c427361654